[Event "*** Titled Tuesday Blitz"]
[Site "Chess.com"]
[Date "2018.01.02"]
[Round "7"]
[White "ZapataCharlesS"]
[Black "Adham_Fawzy"]
[Result "1-0"]
[WhiteElo "2633"]
[BlackElo "2412"]
[TimeControl "180+2"]
[EndTime "14:34:08 PST"]
[Termination "ZapataCharlesS won by resignation"]

1. e4 {[%clk 0:03:01.9]} 1... c5 {[%clk 0:03:00.8]} 2. c3 {[%clk 0:03:00.6]}
2... Nf6 {[%clk 0:03:00.9]} 3. e5 {[%clk 0:03:01.7]} 3... Nd5 {[%clk 0:03:02.1]}
4. d4 {[%clk 0:03:03.5]} 4... cxd4 {[%clk 0:03:03.1]} 5. Nf3 {[%clk 0:03:02.9]}
5... Nc6 {[%clk 0:03:04.2]} 6. Bc4 {[%clk 0:03:02.4]} 6... e6 {[%clk 0:02:59.3]}
7. cxd4 {[%clk 0:03:02.7]} 7... d6 {[%clk 0:03:00.2]} 8. O-O {[%clk 0:03:01.6]}
8... Be7 {[%clk 0:02:52]} 9. Nc3 {[%clk 0:03:02]} 9... Nxc3 {[%clk 0:02:49.7]}
10. bxc3 {[%clk 0:03:03.6]} 10... dxe5 {[%clk 0:02:50.9]} 11. Qe2 {[%clk
0:03:00.3]} 11... exd4 {[%clk 0:02:49.1]} 12. cxd4 {[%clk 0:03:02.2]} 12... O-O
{[%clk 0:02:49.3]} 13. Rd1 {[%clk 0:03:02.7]} 13... Bf6 {[%clk 0:02:49.5]} 14.
Rb1 {[%clk 0:02:46.2]} 14... Re8 {[%clk 0:02:45.2]} 15. Qe4 {[%clk 0:02:41.6]}
15... a6 {[%clk 0:02:39]} 16. Ba3 {[%clk 0:02:39.7]} 16... Ne7 {[%clk 0:02:35]}
17. Ne5 {[%clk 0:02:37.8]} 17... Nd5 {[%clk 0:02:31.1]} 18. Rd3 {[%clk
0:02:38.3]} 18... g6 {[%clk 0:02:23.8]} 19. Rh3 {[%clk 0:02:39]} 19... Bg7
{[%clk 0:02:22]} 20. Bb3 {[%clk 0:02:29.4]} 20... b5 {[%clk 0:02:09.1]} 21. Nc6
{[%clk 0:02:25.2]} 21... Qd7 {[%clk 0:02:09.8]} 22. Ne5 {[%clk 0:02:22.4]} 22...
Qc7 {[%clk 0:02:10.4]} 23. Nxg6 {[%clk 0:02:20.2]} 23... f5 {[%clk 0:01:36.4]}
24. Qe1 {[%clk 0:02:08.6]} 24... hxg6 {[%clk 0:01:06.6]} 25. Bxd5 {[%clk
0:02:08]} 25... Rb8 {[%clk 0:01:06.7]} 26. Bb3 {[%clk 0:02:02.8]} 26... a5
{[%clk 0:00:56.8]} 27. d5 {[%clk 0:02:03.4]} 27... a4 {[%clk 0:00:53.3]} 28. d6
{[%clk 0:02:04.8]} 28... Qa7 {[%clk 0:00:44]} 29. Bc2 {[%clk 0:01:53.2]} 29...
Bd7 {[%clk 0:00:44.2]} 30. Bd3 {[%clk 0:01:54.5]} 30... e5 {[%clk 0:00:40.3]}
31. Bc1 {[%clk 0:01:34.1]} 31... Qc5 {[%clk 0:00:38.8]} 32. Bg5 {[%clk
0:01:31.5]} 32... Qxd6 {[%clk 0:00:37.4]} 33. Bf1 {[%clk 0:01:32.5]} 33... Qe6
{[%clk 0:00:33.8]} 34. Rd1 {[%clk 0:01:30.3]} 34... Bc6 {[%clk 0:00:34.5]} 35.
Qb4 {[%clk 0:01:28]} 35... Bf8 {[%clk 0:00:33.8]} 36. Qh4 {[%clk 0:01:28.8]}
36... Bg7 {[%clk 0:00:33]} 37. Qh7+ {[%clk 0:01:29.7]} 37... Kf7 {[%clk
0:00:34.1]} 38. Bh6 {[%clk 0:01:27.2]} 38... Rg8 {[%clk 0:00:34.9]} 39. Rhd3
{[%clk 0:01:18.6]} 39... Rb7 {[%clk 0:00:21.1]} 40. Rd6 {[%clk 0:01:19.3]} 40...
Rh8 {[%clk 0:00:13]} 41. Qxg7+ {[%clk 0:01:19]} 1-0

[Event "*** Titled Tuesday Blitz"]
[Site "Chess.com"]
[Date "2018.01.02"]
[Round "7"]
[White "aa175"]
[Black "arna"]
[Result "0-1"]
[WhiteElo "1894"]
[BlackElo "2100"]
[TimeControl "180+2"]
[EndTime "14:34:20 PST"]
[Termination "arna won on time"]

1. e4 {[%clk 0:03:01.9]} 1... c5 {[%clk 0:02:56.3]} 2. Nf3 {[%clk 0:03:02]} 2...
Nc6 {[%clk 0:02:56.6]} 3. d4 {[%clk 0:03:01.6]} 3... cxd4 {[%clk 0:02:57]} 4.
Nxd4 {[%clk 0:03:03.5]} 4... e5 {[%clk 0:02:57.4]} 5. Nb5 {[%clk 0:03:04.2]}
5... d6 {[%clk 0:02:58.6]} 6. N1c3 {[%clk 0:03:01.1]} 6... a6 {[%clk 0:02:58.8]}
7. Na3 {[%clk 0:03:01.8]} 7... Be7 {[%clk 0:02:58.8]} 8. Nc4 {[%clk 0:03:00.4]}
8... b5 {[%clk 0:02:42]} 9. Ne3 {[%clk 0:02:59.7]} 9... Nf6 {[%clk 0:02:40.1]}
10. a4 {[%clk 0:02:47.3]} 10... b4 {[%clk 0:02:35.1]} 11. Ncd5 {[%clk
0:02:47.8]} 11... Nxe4 {[%clk 0:02:32.4]} 12. Qf3 {[%clk 0:02:43.6]} 12... Ng5
{[%clk 0:02:12.7]} 13. Qd1 {[%clk 0:02:07]} 13... O-O {[%clk 0:02:02.4]} 14. h4
{[%clk 0:02:03.9]} 14... Ne6 {[%clk 0:01:58.3]} 15. Bd3 {[%clk 0:02:00.1]} 15...
Nc5 {[%clk 0:01:35.2]} 16. Nf5 {[%clk 0:01:44.1]} 16... e4 {[%clk 0:00:46.3]}
17. Bc4 {[%clk 0:01:10.4]} 17... Bxf5 {[%clk 0:00:36.7]} 18. Bf4 {[%clk
0:01:05.5]} 18... Ne5 {[%clk 0:00:19.9]} 19. h5 {[%clk 0:00:19.2]} 19... Nxc4
{[%clk 0:00:16.8]} 20. b3 {[%clk 0:00:17.7]} 20... Ne5 {[%clk 0:00:16.3]} 21.
Rg1 {[%clk 0:00:16.1]} 21... Bg5 {[%clk 0:00:15.2]} 22. g3 {[%clk 0:00:10.8]}
22... Nf3+ {[%clk 0:00:15.3]} 23. Kf1 {[%clk 0:00:12]} 23... Bh3+ {[%clk
0:00:13.8]} 24. Rg2 {[%clk 0:00:11.7]} 24... Bg4 {[%clk 0:00:08.9]} 25. Qb1
{[%clk 0:00:03.7]} 25... Bxf4 {[%clk 0:00:07]} 26. gxf4 {[%clk 0:00:03.9]} 26...
Nd2+ {[%clk 0:00:07.3]} 27. Ke1 {[%clk 0:00:04.2]} 27... Nxb1 {[%clk 0:00:07.2]}
28. Rxg4 {[%clk 0:00:06.1]} 28... Kh8 {[%clk 0:00:07.2]} 29. Rxb1 {[%clk
0:00:06.8]} 29... Ne6 {[%clk 0:00:07.2]} 0-1

[Event "*** Titled Tuesday Blitz"]
[Site "Chess.com"]
[Date "2018.01.02"]
[Round "7"]
[White "ChristopherYoo"]
[Black "ramses135"]
[Result "1-0"]
[WhiteElo "2310"]
[BlackElo "2373"]
[TimeControl "180+2"]
[EndTime "14:34:21 PST"]
[Termination "ChristopherYoo won on time"]

1. e4 {[%clk 0:03:01.9]} 1... e5 {[%clk 0:03:00.1]} 2. Nf3 {[%clk 0:03:02.2]}
2... Nc6 {[%clk 0:03:01.6]} 3. Bb5 {[%clk 0:03:02.5]} 3... Nge7 {[%clk
0:03:01.6]} 4. c3 {[%clk 0:03:01]} 4... a6 {[%clk 0:03:00.7]} 5. Ba4 {[%clk
0:03:01.3]} 5... g6 {[%clk 0:03:01.7]} 6. O-O {[%clk 0:03:01.1]} 6... Bg7 {[%clk
0:03:02.3]} 7. Re1 {[%clk 0:03:01.6]} 7... O-O {[%clk 0:03:02.2]} 8. d3 {[%clk
0:02:51.2]} 8... d6 {[%clk 0:03:00.3]} 9. Nbd2 {[%clk 0:02:51]} 9... Kh8 {[%clk
0:02:55.6]} 10. Nf1 {[%clk 0:02:34.3]} 10... f5 {[%clk 0:02:54.6]} 11. h3 {[%clk
0:02:30.9]} 11... b5 {[%clk 0:02:47.8]} 12. Bc2 {[%clk 0:02:31]} 12... Be6
{[%clk 0:02:43.7]} 13. d4 {[%clk 0:01:24.4]} 13... fxe4 {[%clk 0:02:17.4]} 14.
Bxe4 {[%clk 0:01:20.6]} 14... d5 {[%clk 0:02:18.2]} 15. Bc2 {[%clk 0:01:20.7]}
15... e4 {[%clk 0:02:16.1]} 16. N3h2 {[%clk 0:00:54.8]} 16... Qd7 {[%clk
0:02:16.7]} 17. Ne3 {[%clk 0:00:54.8]} 17... Rf7 {[%clk 0:02:01.9]} 18. f3
{[%clk 0:00:45]} 18... Bxh3 {[%clk 0:01:22]} 19. gxh3 {[%clk 0:00:41.1]} 19...
Qxh3 {[%clk 0:01:22.4]} 20. fxe4 {[%clk 0:00:36.5]} 20... Rf2 {[%clk 0:00:39.8]}
21. Nhf1 {[%clk 0:00:32]} 21... Raf8 {[%clk 0:00:31.9]} 22. Re2 {[%clk 0:00:24]}
22... R2f3 {[%clk 0:00:15.1]} 23. Rh2 {[%clk 0:00:18.2]} 23... Qd7 {[%clk
0:00:09.4]} 24. Qe2 {[%clk 0:00:18.2]} 24... Nxd4 {[%clk 0:00:03.6]} 25. cxd4
{[%clk 0:00:18.5]} 25... Bxd4 {[%clk 0:00:05.5]} 26. Bd2 {[%clk 0:00:14.5]}
26... Qg4+ {[%clk 0:00:05.9]} 27. Qg2 {[%clk 0:00:08.4]} 27... Rxf1+ {[%clk
0:00:04.3]} 28. Rxf1 {[%clk 0:00:08.3]} 28... Rxf1+ {[%clk 0:00:03.6]} 29. Kxf1
{[%clk 0:00:08.8]} 29... Qf4+ {[%clk 0:00:04.6]} 30. Qf2 {[%clk 0:00:09.2]}
30... Qxf2+ {[%clk 0:00:03.7]} 31. Rxf2 {[%clk 0:00:10.1]} 1-0

[Event "*** Titled Tuesday Blitz"]
[Site "Chess.com"]
[Date "2018.01.02"]
[Round "7"]
[White "Hanging_pointer"]
[Black "rasool78"]
[Result "0-1"]
[WhiteElo "2244"]
[BlackElo "2322"]
[TimeControl "180+2"]
[EndTime "14:34:32 PST"]
[Termination "rasool78 won by resignation"]

1. e4 {[%clk 0:03:01.8]} 1... g6 {[%clk 0:03:00.7]} 2. d4 {[%clk 0:03:02.4]}
2... Bg7 {[%clk 0:03:02]} 3. Nc3 {[%clk 0:03:04.3]} 3... c5 {[%clk 0:03:03.3]}
4. dxc5 {[%clk 0:03:04.8]} 4... Bxc3+ {[%clk 0:03:03.8]} 5. bxc3 {[%clk
0:03:06.7]} 5... Qa5 {[%clk 0:03:04.9]} 6. Qd4 {[%clk 0:03:07.8]} 6... Nf6
{[%clk 0:03:05.8]} 7. Qb4 {[%clk 0:03:08.1]} 7... Qc7 {[%clk 0:03:07.2]} 8. Bb5
{[%clk 0:03:06.9]} 8... Nc6 {[%clk 0:03:00]} 9. Bxc6 {[%clk 0:03:05.4]} 9...
Qxc6 {[%clk 0:02:55.7]} 10. f3 {[%clk 0:03:03.5]} 10... b6 {[%clk 0:02:50]} 11.
Be3 {[%clk 0:02:51.7]} 11... O-O {[%clk 0:02:47]} 12. Ne2 {[%clk 0:02:51]} 12...
Ba6 {[%clk 0:02:30.5]} 13. Kf2 {[%clk 0:02:12.1]} 13... Bxe2 {[%clk 0:02:09.6]}
14. Kxe2 {[%clk 0:02:12.6]} 14... bxc5 {[%clk 0:02:04.3]} 15. Qxc5 {[%clk
0:02:12.8]} 15... Qa6+ {[%clk 0:02:04.2]} 16. Kf2 {[%clk 0:02:12.3]} 16... d6
{[%clk 0:02:04.9]} 17. Qd4 {[%clk 0:02:08.6]} 17... Rfc8 {[%clk 0:02:03.1]} 18.
Bd2 {[%clk 0:01:51.6]} 18... Rc4 {[%clk 0:01:57.9]} 19. Qd3 {[%clk 0:01:52.6]}
19... Rac8 {[%clk 0:01:58.2]} 20. Rhe1 {[%clk 0:01:40.6]} 20... Nd7 {[%clk
0:01:51.3]} 21. Qe2 {[%clk 0:01:24.4]} 21... Qa4 {[%clk 0:01:40.8]} 22. Qd1
{[%clk 0:01:01.4]} 22... Qc6 {[%clk 0:01:20.4]} 23. Rb1 {[%clk 0:00:58]} 23...
Nc5 {[%clk 0:01:19.6]} 24. Rb4 {[%clk 0:00:45.2]} 24... Na4 {[%clk 0:01:13.5]}
25. Rb3 {[%clk 0:00:37.5]} 25... Qc5+ {[%clk 0:01:00.3]} 26. Re3 {[%clk
0:00:28.7]} 26... Nb6 {[%clk 0:00:47.3]} 27. Ke2 {[%clk 0:00:28.7]} 27... Ra4
{[%clk 0:00:47.4]} 28. Qb1 {[%clk 0:00:27.1]} 28... Qc4+ {[%clk 0:00:31.9]} 29.
Ke1 {[%clk 0:00:22.7]} 29... Qa6 {[%clk 0:00:32]} 30. a3 {[%clk 0:00:18.7]}
30... Rxa3 {[%clk 0:00:25.1]} 31. Rxa3 {[%clk 0:00:20.5]} 31... Qxa3 {[%clk
0:00:26.2]} 32. Qb3 {[%clk 0:00:22]} 32... Qc5 {[%clk 0:00:25]} 33. Rd3 {[%clk
0:00:21.4]} 33... Qg1+ {[%clk 0:00:22.8]} 34. Ke2 {[%clk 0:00:22]} 34... Qxg2+
{[%clk 0:00:23.7]} 35. Ke3 {[%clk 0:00:23.2]} 35... Nc4+ {[%clk 0:00:22.7]} 36.
Kd4 {[%clk 0:00:22.4]} 36... Nxd2 {[%clk 0:00:18.9]} 0-1

[Event "*** Titled Tuesday Blitz"]
[Site "Chess.com"]
[Date "2018.01.02"]
[Round "7"]
[White "TheNomNomFactor"]
[Black "MatthewG-p4p"]
[Result "0-1"]
[WhiteElo "2395"]
[BlackElo "2601"]
[TimeControl "180+2"]
[EndTime "14:34:35 PST"]
[Termination "MatthewG-p4p won on time"]

1. d4 {[%clk 0:03:01]} 1... Nf6 {[%clk 0:03:00.2]} 2. c4 {[%clk 0:03:00.9]} 2...
c5 {[%clk 0:03:00.4]} 3. d5 {[%clk 0:03:01.6]} 3... e6 {[%clk 0:03:01.8]} 4. Nc3
{[%clk 0:03:02.2]} 4... exd5 {[%clk 0:03:01.1]} 5. cxd5 {[%clk 0:03:04.1]} 5...
d6 {[%clk 0:03:02.7]} 6. Nf3 {[%clk 0:03:05.1]} 6... g6 {[%clk 0:03:04]} 7. Bf4
{[%clk 0:03:05.4]} 7... a6 {[%clk 0:03:05.2]} 8. a4 {[%clk 0:03:01.8]} 8... Bg7
{[%clk 0:03:06.3]} 9. h3 {[%clk 0:03:03]} 9... O-O {[%clk 0:03:06.1]} 10. e3
{[%clk 0:03:04.1]} 10... Re8 {[%clk 0:03:06.8]} 11. Nd2 {[%clk 0:03:03.1]} 11...
Nh5 {[%clk 0:03:06.7]} 12. Bh2 {[%clk 0:02:57.5]} 12... f5 {[%clk 0:02:43.5]}
13. Be2 {[%clk 0:02:57.1]} 13... f4 {[%clk 0:02:42.9]} 14. exf4 {[%clk
0:02:44.4]} 14... Nf6 {[%clk 0:02:39.8]} 15. O-O {[%clk 0:02:40.8]} 15... Nbd7
{[%clk 0:02:40.1]} 16. f5 {[%clk 0:02:35.2]} 16... gxf5 {[%clk 0:02:41.3]} 17.
Nc4 {[%clk 0:02:32.1]} 17... Ne5 {[%clk 0:02:42.1]} 18. Bxe5 {[%clk 0:02:15]}
18... dxe5 {[%clk 0:02:42.7]} 19. a5 {[%clk 0:02:16.5]} 19... e4 {[%clk
0:02:21.2]} 20. Nb6 {[%clk 0:01:31.5]} 20... Rb8 {[%clk 0:02:21.6]} 21. Bc4
{[%clk 0:01:32.7]} 21... Qd6 {[%clk 0:02:16]} 22. Re1 {[%clk 0:01:25.7]} 22...
Bd7 {[%clk 0:02:10.5]} 23. Qd2 {[%clk 0:01:22.7]} 23... Rbd8 {[%clk 0:02:04.5]}
24. Rad1 {[%clk 0:01:16.3]} 24... f4 {[%clk 0:01:58.5]} 25. Ba2 {[%clk
0:01:16.1]} 25... Bb5 {[%clk 0:01:56.6]} 26. Nxb5 {[%clk 0:00:58.6]} 26... axb5
{[%clk 0:01:57.5]} 27. Qc2 {[%clk 0:00:38.1]} 27... f3 {[%clk 0:01:36.1]} 28.
Qb3 {[%clk 0:00:35.4]} 28... Nh5 {[%clk 0:01:17.8]} 29. Qxb5 {[%clk 0:00:34.4]}
29... Bd4 {[%clk 0:01:10]} 30. Rxd4 {[%clk 0:00:23.3]} 30... cxd4 {[%clk
0:01:09.3]} 31. Nc4 {[%clk 0:00:24.9]} 31... Qg6 {[%clk 0:01:06.1]} 32. g4
{[%clk 0:00:21.3]} 32... Nf4 {[%clk 0:01:07.2]} 33. Kh2 {[%clk 0:00:19.2]} 33...
Qh6 {[%clk 0:01:05]} 34. Kg3 {[%clk 0:00:17.4]} 34... Nd3 {[%clk 0:00:41.4]} 35.
d6 {[%clk 0:00:07.6]} 35... Qf4+ {[%clk 0:00:29.3]} 36. Kh4 {[%clk 0:00:08.1]}
36... Kh8 {[%clk 0:00:30.8]} 37. Qxb7 {[%clk 0:00:04.3]} 37... Re6 {[%clk
0:00:27.7]} 0-1

[Event "*** Titled Tuesday Blitz"]
[Site "Chess.com"]
[Date "2018.01.02"]
[Round "7"]
[White "Maitreia"]
[Black "geeeeri"]
[Result "0-1"]
[WhiteElo "2537"]
[BlackElo "2417"]
[TimeControl "180+2"]
[EndTime "14:34:43 PST"]
[Termination "geeeeri won by checkmate"]

1. c4 {[%clk 0:03:01.4]} 1... e5 {[%clk 0:02:59.9]} 2. g3 {[%clk 0:03:02.4]}
2... Nc6 {[%clk 0:03:00.6]} 3. Bg2 {[%clk 0:03:03.5]} 3... Nf6 {[%clk
0:03:02.3]} 4. a3 {[%clk 0:03:04.4]} 4... a5 {[%clk 0:03:02.6]} 5. Nc3 {[%clk
0:03:04.3]} 5... Bc5 {[%clk 0:03:03.8]} 6. d3 {[%clk 0:03:03.9]} 6... O-O {[%clk
0:03:05]} 7. Nf3 {[%clk 0:03:05]} 7... Re8 {[%clk 0:03:06.1]} 8. Bg5 {[%clk
0:03:04]} 8... h6 {[%clk 0:03:05.6]} 9. Bxf6 {[%clk 0:03:04.6]} 9... Qxf6 {[%clk
0:03:07.5]} 10. O-O {[%clk 0:03:03.6]} 10... Qd8 {[%clk 0:03:04.8]} 11. e3
{[%clk 0:03:00.2]} 11... d6 {[%clk 0:03:04.3]} 12. Nd5 {[%clk 0:02:51.2]} 12...
Bg4 {[%clk 0:03:04.4]} 13. h3 {[%clk 0:02:51.4]} 13... Bh5 {[%clk 0:03:00.3]}
14. Qd2 {[%clk 0:02:48.1]} 14... Ne7 {[%clk 0:02:56.2]} 15. b4 {[%clk
0:02:40.7]} 15... Ba7 {[%clk 0:02:45]} 16. bxa5 {[%clk 0:02:37.4]} 16... Nxd5
{[%clk 0:02:45.6]} 17. cxd5 {[%clk 0:02:39.3]} 17... Bc5 {[%clk 0:02:43.2]} 18.
d4 {[%clk 0:02:39.1]} 18... e4 {[%clk 0:02:16.5]} 19. g4 {[%clk 0:02:11.1]}
19... exf3 {[%clk 0:02:08.6]} 20. Bxf3 {[%clk 0:02:13]} 20... Bxd4 {[%clk
0:02:03.8]} 21. Qxd4 {[%clk 0:02:10.3]} 21... Bg6 {[%clk 0:02:03.5]} 22. Qb4
{[%clk 0:02:06.7]} 22... Bd3 {[%clk 0:01:50.4]} 23. Rfd1 {[%clk 0:02:02.2]}
23... Ba6 {[%clk 0:01:50.8]} 24. Rd4 {[%clk 0:02:03]} 24... Qf6 {[%clk
0:01:46.3]} 25. Kg2 {[%clk 0:02:00]} 25... Re5 {[%clk 0:01:37.7]} 26. Rc1 {[%clk
0:01:59.4]} 26... Rae8 {[%clk 0:01:22.4]} 27. Rf4 {[%clk 0:01:42.7]} 27... Qe7
{[%clk 0:01:22.8]} 28. Qc3 {[%clk 0:01:39.3]} 28... Rc8 {[%clk 0:01:12.4]} 29.
Qd4 {[%clk 0:01:30.3]} 29... c5 {[%clk 0:01:09.9]} 30. dxc6 {[%clk 0:01:31.1]}
30... bxc6 {[%clk 0:01:11.4]} 31. Rxc6 {[%clk 0:01:28.6]} 31... Rxc6 {[%clk
0:01:06.1]} 32. Bxc6 {[%clk 0:01:30.5]} 32... Rxa5 {[%clk 0:01:06.6]} 33. a4
{[%clk 0:01:17.7]} 33... Rc5 {[%clk 0:01:04.5]} 34. Bf3 {[%clk 0:01:16.2]} 34...
Rc1 {[%clk 0:00:58.7]} 35. Bd5 {[%clk 0:01:04.1]} 35... Qh4 {[%clk 0:00:47.5]}
36. Bxf7+ {[%clk 0:00:37]} 36... Kh8 {[%clk 0:00:48.1]} 37. Rf3 {[%clk
0:00:38.5]} 37... Bf1+ {[%clk 0:00:40]} 38. Kh2 {[%clk 0:00:39]} 38... Bxh3
{[%clk 0:00:41.2]} 39. g5 {[%clk 0:00:03.4]} 39... Bg4+ {[%clk 0:00:36.2]} 40.
Rh3 {[%clk 0:00:02.5]} 40... Qxh3# {[%clk 0:00:36.9]} 0-1

[Event "*** Titled Tuesday Blitz"]
[Site "Chess.com"]
[Date "2018.01.02"]
[Round "7"]
[White "tomsishere"]
[Black "pandamaster3000"]
[Result "1-0"]
[WhiteElo "2314"]
[BlackElo "2267"]
[TimeControl "180+2"]
[EndTime "14:34:45 PST"]
[Termination "tomsishere won by checkmate"]

1. d4 {[%clk 0:03:01.9]} 1... Nf6 {[%clk 0:03:01]} 2. c4 {[%clk 0:03:02.3]} 2...
g6 {[%clk 0:03:01.7]} 3. f3 {[%clk 0:03:02.4]} 3... Bg7 {[%clk 0:03:02.2]} 4. e4
{[%clk 0:03:02]} 4... d6 {[%clk 0:03:03.6]} 5. Ne2 {[%clk 0:03:02.4]} 5... e5
{[%clk 0:03:03.3]} 6. d5 {[%clk 0:03:02]} 6... Nh5 {[%clk 0:03:04]} 7. Be3
{[%clk 0:03:00.1]} 7... f5 {[%clk 0:03:04.1]} 8. Nbc3 {[%clk 0:02:57.7]} 8...
Bf6 {[%clk 0:02:58.7]} 9. Qd2 {[%clk 0:02:57.1]} 9... f4 {[%clk 0:02:58.6]} 10.
Bf2 {[%clk 0:02:57.3]} 10... Bh4 {[%clk 0:03:00]} 11. g3 {[%clk 0:02:57.2]}
11... Bg5 {[%clk 0:02:58.6]} 12. g4 {[%clk 0:02:54.1]} 12... Bxg4 {[%clk
0:02:59.1]} 13. fxg4 {[%clk 0:02:49]} 13... f3 {[%clk 0:03:00.3]} 14. Be3 {[%clk
0:02:45.4]} 14... Bxe3 {[%clk 0:02:26.8]} 15. Qxe3 {[%clk 0:02:45.5]} 15... fxe2
{[%clk 0:02:24.2]} 16. gxh5 {[%clk 0:02:43]} 16... exf1=Q+ {[%clk 0:02:20.7]}
17. Rxf1 {[%clk 0:02:43]} 17... Qh4+ {[%clk 0:02:21.7]} 18. Qf2 {[%clk
0:02:20.2]} 18... Qxf2+ {[%clk 0:02:02.6]} 19. Rxf2 {[%clk 0:02:20.8]} 19... Nd7
{[%clk 0:01:57.7]} 20. hxg6 {[%clk 0:02:17.9]} 20... hxg6 {[%clk 0:01:58.2]} 21.
Nb5 {[%clk 0:02:16.3]} 21... O-O-O {[%clk 0:01:52.7]} 22. Nxa7+ {[%clk
0:02:14.7]} 22... Kb8 {[%clk 0:01:53.6]} 23. Nb5 {[%clk 0:02:16]} 23... Nc5
{[%clk 0:01:55.1]} 24. Re2 {[%clk 0:02:05.5]} 24... Rh4 {[%clk 0:01:55.8]} 25.
Nc3 {[%clk 0:02:00.4]} 25... Nd3+ {[%clk 0:01:50.3]} 26. Kd1 {[%clk 0:01:55.4]}
26... Rdh8 {[%clk 0:01:37.5]} 27. Kc2 {[%clk 0:01:54.4]} 27... Nf4 {[%clk
0:01:32.9]} 28. Rd2 {[%clk 0:01:40.5]} 28... Rxh2 {[%clk 0:01:33.3]} 29. Rg1
{[%clk 0:01:31.1]} 29... Rxd2+ {[%clk 0:01:24]} 30. Kxd2 {[%clk 0:01:31.7]}
30... Rh2+ {[%clk 0:01:25.5]} 31. Kd1 {[%clk 0:01:02.7]} 31... Rxb2 {[%clk
0:01:20.3]} 32. Rh1 {[%clk 0:01:02.8]} 32... Ka7 {[%clk 0:00:56.6]} 33. Rh7
{[%clk 0:00:54.6]} 33... Rg2 {[%clk 0:00:31.8]} 34. Rxc7 {[%clk 0:00:41.7]}
34... Kb6 {[%clk 0:00:22.6]} 35. Rc8 {[%clk 0:00:31.8]} 35... Rg1+ {[%clk
0:00:14]} 36. Kd2 {[%clk 0:00:31.2]} 36... Rg2+ {[%clk 0:00:15.4]} 37. Kd1
{[%clk 0:00:30]} 37... Rg1+ {[%clk 0:00:16.4]} 38. Kc2 {[%clk 0:00:30.1]} 38...
Rg2+ {[%clk 0:00:12.3]} 39. Kb3 {[%clk 0:00:30.5]} 39... Nd3 {[%clk 0:00:12.5]}
40. Na4+ {[%clk 0:00:27.6]} 40... Ka5 {[%clk 0:00:07.4]} 41. Ra8# {[%clk
0:00:25.8]} 1-0

[Event "*** Titled Tuesday Blitz"]
[Site "Chess.com"]
[Date "2018.01.02"]
[Round "7"]
[White "Squirlolz"]
[Black "Indianlad"]
[Result "0-1"]
[WhiteElo "2482"]
[BlackElo "2654"]
[TimeControl "180+2"]
[EndTime "14:34:48 PST"]
[Termination "Indianlad won on time"]

1. e4 {[%clk 0:03:01.9]} 1... e5 {[%clk 0:03:01]} 2. Nf3 {[%clk 0:03:02.4]} 2...
Nc6 {[%clk 0:03:02]} 3. Bb5 {[%clk 0:03:03.9]} 3... a6 {[%clk 0:03:02.1]} 4. Ba4
{[%clk 0:03:05.3]} 4... Nf6 {[%clk 0:03:02.9]} 5. O-O {[%clk 0:03:06.7]} 5...
Be7 {[%clk 0:03:03.4]} 6. d3 {[%clk 0:03:05.8]} 6... b5 {[%clk 0:03:03.7]} 7.
Bb3 {[%clk 0:03:06.7]} 7... O-O {[%clk 0:03:04.4]} 8. Nc3 {[%clk 0:03:07.1]}
8... d6 {[%clk 0:03:01.2]} 9. a3 {[%clk 0:03:07.4]} 9... Be6 {[%clk 0:02:55.8]}
10. Bxe6 {[%clk 0:03:06]} 10... fxe6 {[%clk 0:02:56.1]} 11. Ne2 {[%clk
0:03:02.7]} 11... Nh5 {[%clk 0:02:54.1]} 12. Ng3 {[%clk 0:02:59.2]} 12... Nf4
{[%clk 0:02:54.3]} 13. Be3 {[%clk 0:02:58.9]} 13... h5 {[%clk 0:02:45.8]} 14. d4
{[%clk 0:02:42.4]} 14... h4 {[%clk 0:02:44.8]} 15. Ne2 {[%clk 0:02:42.8]} 15...
h3 {[%clk 0:02:42.3]} 16. Bxf4 {[%clk 0:02:39]} 16... hxg2 {[%clk 0:02:42.1]}
17. Kxg2 {[%clk 0:02:38.9]} 17... exf4 {[%clk 0:02:43.3]} 18. Kh1 {[%clk
0:02:34.3]} 18... Qe8 {[%clk 0:02:38.5]} 19. Rg1 {[%clk 0:02:27.5]} 19... Qh5
{[%clk 0:02:39.5]} 20. Nc3 {[%clk 0:02:23.4]} 20... Rf6 {[%clk 0:02:26.7]} 21.
Rg2 {[%clk 0:02:23.7]} 21... Raf8 {[%clk 0:02:24.1]} 22. Qd3 {[%clk 0:02:24.2]}
22... Rh6 {[%clk 0:02:18.3]} 23. Rag1 {[%clk 0:02:22.4]} 23... Rh7 {[%clk
0:02:19.5]} 24. Ne2 {[%clk 0:02:16.1]} 24... e5 {[%clk 0:02:18]} 25. dxe5 {[%clk
0:01:57.9]} 25... Nxe5 {[%clk 0:02:17.8]} 26. Nxe5 {[%clk 0:01:58.6]} 26... dxe5
{[%clk 0:02:12.7]} 27. f3 {[%clk 0:01:58.8]} 27... Rd8 {[%clk 0:02:08.9]} 28.
Qb3+ {[%clk 0:01:57.6]} 28... Qf7 {[%clk 0:02:07.4]} 29. Nc3 {[%clk 0:01:44.8]}
29... Qxb3 {[%clk 0:02:06.4]} 30. cxb3 {[%clk 0:01:46.7]} 30... c6 {[%clk
0:02:00.7]} 31. Rd1 {[%clk 0:01:45.2]} 31... Rxd1+ {[%clk 0:01:57.3]} 32. Nxd1
{[%clk 0:01:47.1]} 32... Rh3 {[%clk 0:01:58.7]} 33. Rf2 {[%clk 0:01:43.6]} 33...
Bc5 {[%clk 0:01:59.7]} 34. Kg2 {[%clk 0:01:34.4]} 34... Rh6 {[%clk 0:01:57.9]}
35. Rc2 {[%clk 0:01:25.5]} 35... Bd4 {[%clk 0:01:54.9]} 36. Nc3 {[%clk
0:01:20.4]} 36... Rg6+ {[%clk 0:01:54.8]} 37. Kh3 {[%clk 0:01:17.3]} 37... Kf7
{[%clk 0:01:50.5]} 38. Ne2 {[%clk 0:01:13]} 38... Be3 {[%clk 0:01:45.9]} 39. Nc3
{[%clk 0:00:48.2]} 39... Rg1 {[%clk 0:01:44.3]} 40. Ne2 {[%clk 0:00:43.4]} 40...
Re1 {[%clk 0:01:40.5]} 41. Kg4 {[%clk 0:00:41.4]} 41... c5 {[%clk 0:01:39.4]}
42. Kf5 {[%clk 0:00:38.3]} 42... Rf1 {[%clk 0:01:37.8]} 43. Kg4 {[%clk
0:00:21.4]} 43... Rf2 {[%clk 0:01:38]} 44. h4 {[%clk 0:00:20.2]} 44... g6 {[%clk
0:01:37.2]} 45. Kh3 {[%clk 0:00:12.9]} 45... Kg7 {[%clk 0:01:32.1]} 46. Kg4
{[%clk 0:00:12.3]} 46... Kh6 {[%clk 0:01:33.3]} 47. a4 {[%clk 0:00:06.2]} 47...
b4 {[%clk 0:01:32.4]} 48. h5 {[%clk 0:00:04.3]} 48... gxh5+ {[%clk 0:01:32.4]}
49. Kf5 {[%clk 0:00:06.2]} 49... h4 {[%clk 0:01:27.9]} 50. Kxe5 {[%clk
0:00:04.8]} 50... h3 {[%clk 0:01:28.8]} 0-1